fUSD/lending_fUSD_20241219
["ID","MTS","AMOUNT","RATE_DAILY","PERIOD"]
[345989167,1734608760502,-2490.75109368,0.000199,2]
[345989168,1734608760524,-639.69,0.00019971,2]
[345989169,1734608760547,-500.0,0.00019973,2]
[345989170,1734608760569,-48322.17868006,0.0001998,2]
[345989171,1734608760590,-500.0,0.0001998,2]
[345989172,1734608760612,-500.0,0.0001998,2]
[345989173,1734608760634,-500.0,0.0001998,2]
[345989174,1734608760654,-500.0,0.0001998,2]
[345989175,1734608760675,-2348.0,0.0001999,3]
[345989176,1734608760698,-150.23,0.0001999,2]
[345989177,1734608760724,-67794.89703138,0.0002,2]
[345989178,1734608760745,-24999.999999,0.0002,2]
[345989179,1734608760766,-5603.43787249,0.0002,2]
[345989180,1734608760787,-5000.0,0.0002,2]
[345989181,1734608760808,-2206.2143587,0.0002,2]
[345989182,1734608760829,-2513.0,0.0002,2]
[345989183,1734608760849,-167.88,0.00020045,2]
[345989184,1734608760870,-167.41,0.00020053,2]
[345989185,1734608760891,-1100.0,0.00020068,2]
[345989186,1734608760912,-500.0,0.00020068,2]
[345989187,1734608760933,-976.54,0.00020082,2]
[345989188,1734608760955,-976.54,0.00020082,2]
[345989189,1734608760975,-976.54,0.00020082,2]
[345989190,1734608760996,-976.54,0.00020082,2]
[345989191,1734608761019,-500.0,0.00020137,2]
[345989192,1734608761041,-500.0,0.00020137,2]
[345989193,1734608761063,-503.818,0.00020274,2]
[345989194,1734608761084,-1056.0,0.00020382,2]
[345989195,1734608761106,-150.0,0.00020397,2]
[345989196,1734608761133,-200.14678772,0.00020416,2]
[345989197,1734608761158,-2490.75109363,0.00020444,2]
[345989198,1734608761180,-1000.0,0.00020521,2]
[345989199,1734608761200,-43092.0,0.00020579,3]
[345989200,1734608761224,-639.69,0.00020684,2]
[345989201,1734608761245,-322.82175632,0.000208,2]
[345989202,1734608761268,-348.92980774,0.000208,2]
[345989203,1734608761288,-2000.0,0.00020822,2]
[345989204,1734608761310,-150.23,0.0002089,2]
[345989205,1734608761334,-182381.07619943,0.000209,3]
[345989206,1734608761357,-1931.85447019,0.000209,3]
[345989207,1734608761379,-260842.788943,0.000209,2]
[345989208,1734608761400,-155.16353725,0.00020902,2]
[345989209,1734608761422,-502.24163111,0.00020902,2]
[345989210,1734608761445,-453.84689133,0.00020902,2]
[345989211,1734608761471,-500.0,0.00020902,2]
[345989212,1734608761492,-976.54,0.00020904,2]
[345989213,1734608761514,-681.7,0.00020904,2]
[345989214,1734608761536,-200.14678772,0.00020951,2]
[345989215,1734608761559,-2490.75109363,0.00020989,2]
[345989216,1734608761582,-1500.0,0.00021117,2]
[345989217,1734608761604,-1500.0,0.00021135,2]
[345989218,1734608761626,-1100.0,0.00021164,2]
[345989219,1734608761648,-601.50345476,0.00021164,2]
[345989220,1734608761669,-500.0,0.00021164,2]
[345989221,1734608761690,-173.73,0.00021211,2]
[345989222,1734608761717,-406.0,0.0002137,4]
[345989223,1734608761747,-639.69,0.00021396,2]
[345989224,1734608761773,-1056.0,0.00021401,2]
[345989225,1734608761796,-200.0,0.00021483,2]
[345989226,1734608761820,-322.82175629,0.00021483,2]
[345989227,1734608761845,-200.14678772,0.00021487,2]
[345989228,1734608761867,-1500.0,0.00021522,2]
[345989229,1734608761890,-2490.75109363,0.00021533,2]
[345989230,1734608761912,-2000.0,0.00021592,2]
[345989231,1734608761935,-837.98,0.00021675,2]
[345989232,1734608761959,-1500.0,0.00021691,2]
[345989233,1734608761981,-167.41,0.00021708,2]
[345989234,1734608762002,-150.0,0.00021767,2]
[345989235,1734608762025,-1180.81,0.00021797,2]
[345989236,1734608762046,-1000.0,0.000218,2]
[345989237,1734608762070,-200.07725191,0.00021807,2]
[345989238,1734608762091,-161.05242704,0.00021807,2]
[345989239,1734608762113,-1000.0,0.0002186,2]
[345989240,1734608762135,-150.23,0.0002189,2]
[345989241,1734608762158,-150.23,0.0002189,2]
[345989242,1734608762180,-150.0,0.00021899,2]
[345989243,1734608762202,-42910.80237654,0.000219,2]
[345989258,1734609033052,-0.1336562,0.0001989,2]
[345989259,1734609033064,-488.8428395,0.0001989,2]
[345989260,1734609033084,-2090.2893043,0.0001989,2]
[345989261,1734609033094,-5664.0114,0.000199,2]
[345989262,1734609033104,-5919.0443,0.000199,2]
[345989263,1734609033113,-500.0,0.00020068,2]
[345989264,1734609033122,-900.0,0.00020068,2]
[345989265,1734609033132,-464.71,0.000208,2]
[345989266,1734609033141,-1000.0,0.00020946,2]
[345989267,1734609033151,-32.3173118,0.0002101,2]
[345989268,1734609033180,-187.4926882,0.0002101,2]
[345989269,1734609033190,-502.78,0.0002101,2]
[345989270,1734609033200,-14.7273118,0.00021073,2]
[345989271,1734609033213,-235.2726882,0.00021073,2]
[345989272,1734609033223,-900.0,0.00021164,2]
[345989273,1734609033234,-150.0,0.0002126,2]
[345989274,1734609033244,-1103.1071793,0.00021461,2]
[345989275,1734609033254,-502.07,0.00021526,2]
[345989276,1734609033264,-495.4,0.00021526,2]
[345989277,1734609033274,-2890.39425032,0.0002169,2]
[345989278,1734609033284,-554.2843,0.000218,2]
[345989279,1734609033293,-4292.1401,0.000218,2]
[345989280,1734609033303,-228.45785371,0.00021817,2]
[345989281,1734609033313,-373.71899692,0.00021817,2]
[345989282,1734609033323,-500.0,0.000219,7]
[345989283,1734609033333,-900.0,0.000219,2]
[345989284,1734609033343,-168310.67029947,0.000219,2]
[345989285,1734609033353,-1266.94822,0.000219,2]
[345989286,1734609033363,-502.93,0.00021902,2]
[345989287,1734609033373,-192.57,0.00021907,2]
[345989288,1734609033383,-999.0,0.00021916,2]
[345989289,1734609033392,-4386.00271632,0.00021916,2]
[345989290,1734609033402,-500.0,0.00021917,4]
[345989291,1734609033411,-500.0,0.00021917,4]
[345989292,1734609033422,-500.0,0.00021917,4]
[345989293,1734609033432,-500.0,0.00021917,4]
[345989294,1734609033442,-500.0,0.00021917,4]
[345989295,1734609033452,-500.0,0.00021917,4]
[345989296,1734609033462,-500.0,0.00021917,4]
[345989297,1734609033472,-500.0,0.00021917,4]
[345989298,1734609033482,-500.0,0.00021917,4]
[345989299,1734609033493,-500.0,0.00021917,4]
[345989300,1734609033503,-329.01037273,0.00021917,4]
[345989301,1734609033513,-500.0,0.00021917,4]
[345989302,1734609033522,-500.0,0.00021917,4]
[345989303,1734609033532,-500.0,0.00021917,4]
[345989304,1734609033542,-500.0,0.00021917,4]
[345989305,1734609033556,-500.0,0.00021917,4]
[345989306,1734609033565,-500.0,0.00021917,4]
[345989307,1734609033575,-500.0,0.00021917,4]
[345989308,1734609033586,-500.0,0.00021917,4]
[345989309,1734609033595,-500.0,0.00021917,4]
[345989310,1734609033605,-500.0,0.00021917,4]
[345989311,1734609033615,-500.0,0.00021917,4]
[345989312,1734609033625,-500.0,0.00021917,4]
[345989313,1734609033635,-500.0,0.00021917,4]
[345989314,1734609033645,-500.0,0.00021917,4]
[345989315,1734609033656,-500.0,0.00021917,4]
[345989316,1734609033665,-500.0,0.00021917,4]
[345989317,1734609033675,-500.0,0.00021917,4]
[345989318,1734609033685,-500.0,0.00021917,4]
[345989319,1734609033695,-329.73097461,0.00021917,4]
[345989320,1734609033704,-500.0,0.00021917,4]
[345989321,1734609033714,-500.0,0.00021917,4]
[345989322,1734609033724,-500.0,0.00021917,4]
[345989323,1734609033734,-500.0,0.00021917,4]
[345989324,1734609033743,-500.0,0.00021917,4]
[345989325,1734609033753,-500.0,0.00021917,4]
[345989326,1734609033763,-500.0,0.00021917,4]
[345989327,1734609033773,-500.0,0.00021917,4]
[345989328,1734609033783,-500.0,0.00021917,4]
[345989329,1734609033793,-500.0,0.00021917,4]
[345989330,1734609033803,-418.76864276,0.00021917,4]
[345989331,1734609033813,-500.0,0.00021917,4]
[345989332,1734609033822,-500.0,0.00021917,4]
[345989333,1734609033831,-500.0,0.00021917,2]
[345989334,1734609033842,-500.0,0.00021917,4]
[345989335,1734609033852,-500.0,0.00021917,4]
[345989336,1734609033862,-500.0,0.00021917,4]
[345989337,1734609033872,-500.0,0.00021917,4]
[345989338,1734609033881,-500.0,0.00021917,4]
[345989339,1734609033891,-500.0,0.00021917,4]
[345989340,1734609033901,-500.0,0.00021917,4]
[345989341,1734609033911,-500.0,0.00021917,4]
[345989342,1734609033921,-500.0,0.00021917,4]
[345989343,1734609033930,-500.0,0.00021917,4]
[345989344,1734609033940,-500.0,0.00021917,4]
[345989345,1734609033949,-500.0,0.00021917,4]
[345989346,1734609033959,-500.0,0.00021917,4]
[345989347,1734609033969,-500.0,0.00021917,4]
[345989348,1734609033979,-511.13553812,0.00021917,4]
[345989349,1734609033988,-551.83431061,0.00021917,4]
[345989350,1734609033998,-500.0,0.00021917,4]
[345989351,1734609034008,-500.0,0.00021917,4]
[345989352,1734609034018,-500.0,0.00021917,4]
[345989353,1734609034027,-500.0,0.00021917,4]
[345989354,1734609034037,-500.0,0.00021917,4]
[345989355,1734609034046,-500.0,0.00021917,4]
[345989356,1734609034056,-501.77048105,0.00021917,4]
[345989357,1734609034065,-500.0,0.00021917,4]
[345989358,1734609034075,-342.735388,0.00021917,4]
[345989359,1734609034085,-500.0,0.00021917,4]
[345989360,1734609034095,-992.699211,0.00021917,4]
[345989361,1734609034105,-500.0,0.00021917,4]
[345989362,1734609034115,-500.0,0.00021917,4]
[345989363,1734609034124,-500.0,0.00021917,4]
[345989364,1734609034133,-500.0,0.00021917,4]
[345989365,1734609034143,-500.0,0.00021917,4]
[345989366,1734609034153,-500.0,0.00021917,4]
[345989367,1734609034163,-500.0,0.00021917,4]
[345989368,1734609034173,-500.0,0.00021917,4]
[345989369,1734609034182,-500.0,0.00021917,4]
[345989370,1734609034193,-500.0,0.00021917,4]
[345989371,1734609034203,-500.0,0.00021917,4]
[345989372,1734609034212,-500.0,0.00021917,4]
[345989373,1734609034222,-500.0,0.00021917,4]
[345989374,1734609034232,-530.74,0.00021917,4]
[345989375,1734609034242,-500.0,0.00021917,4]
[345989376,1734609034252,-500.0,0.00021917,4]
[345989377,1734609034262,-500.0,0.00021917,4]
[345989378,1734609034272,-500.0,0.00021917,4]
[345989379,1734609034282,-500.0,0.00021917,4]
[345989380,1734609034292,-500.0,0.00021917,4]
[345989381,1734609034301,-500.0,0.00021917,4]
[345989382,1734609034311,-500.0,0.00021917,4]
[345989383,1734609034321,-500.0,0.00021917,2]
[345989384,1734609034331,-500.0,0.00021917,4]
[345989385,1734609034341,-500.0,0.00021917,4]
[345989386,1734609034351,-500.0,0.00021917,4]
[345989387,1734609034361,-500.0,0.00021917,4]
[345989388,1734609034371,-500.0,0.00021917,4]
[345989389,1734609034380,-595.49,0.00021917,4]
[345989390,1734609034390,-500.0,0.00021917,4]
[345989391,1734609034400,-500.0,0.00021917,4]
[345989392,1734609034411,-500.0,0.00021917,4]
[345989393,1734609034421,-500.0,0.00021917,4]
[345989394,1734609034430,-500.0,0.00021917,4]
[345989395,1734609034440,-500.0,0.00021917,4]
[345989396,1734609034451,-500.0,0.00021917,4]
[345989397,1734609034460,-500.0,0.00021917,4]
[345989398,1734609034470,-500.0,0.00021917,4]
[345989399,1734609034480,-500.0,0.00021917,4]
[345989400,1734609034489,-500.0,0.00021917,4]
[345989401,1734609034499,-500.0,0.00021917,4]
[345989402,1734609034509,-500.0,0.00021917,4]
[345989403,1734609034519,-500.0,0.00021917,4]
[345989404,1734609034528,-500.0,0.00021917,4]
[345989405,1734609034538,-500.0,0.00021917,4]
[345989406,1734609034548,-500.0,0.00021917,4]
[345989407,1734609034558,-500.0,0.00021917,4]
[345989408,1734609034571,-500.0,0.00021917,4]
[345989409,1734609034580,-500.0,0.00021917,4]
[345989410,1734609034589,-500.0,0.00021917,4]
[345989411,1734609034599,-500.0,0.00021917,4]
[345989412,1734609034610,-500.0,0.00021917,4]
[345989413,1734609034620,-500.0,0.00021917,2]
[345989414,1734609034629,-500.0,0.00021917,4]
[345989415,1734609034639,-500.0,0.00021917,4]
[345989416,1734609034649,-500.0,0.00021917,4]
[345989417,1734609034662,-500.0,0.00021917,4]
[345989418,1734609034671,-506.42,0.00021917,4]
[345989419,1734609034681,-500.0,0.00021917,4]
[345989420,1734609034690,-500.0,0.00021917,4]
[345989421,1734609034699,-500.0,0.00021917,4]
[345989422,1734609034709,-500.0,0.00021917,4]
[345989423,1734609034718,-500.0,0.00021917,4]
[345989424,1734609034728,-500.0,0.00021917,4]
[345989425,1734609034738,-500.0,0.00021917,4]
[345989426,1734609034747,-500.0,0.00021917,4]
[345989427,1734609034756,-500.0,0.00021917,4]
[345989428,1734609034765,-500.0,0.00021917,4]
[345989429,1734609034776,-500.0,0.00021917,4]
[345989430,1734609034785,-500.0,0.00021917,4]
[345989431,1734609034795,-500.0,0.00021917,4]
[345989432,1734609034804,-500.0,0.00021917,4]
[345989433,1734609034813,-500.0,0.00021917,4]
[345989434,1734609034822,-500.0,0.00021917,4]
[345989435,1734609034831,-500.0,0.00021917,4]
[345989436,1734609034841,-500.0,0.00021917,4]
[345989437,1734609034850,-352.18675732,0.00021917,4]
[345989438,1734609034871,-147.81324268,0.00021917,4]
[345989439,1734609034881,-500.0,0.00021917,4]
[345989440,1734609034891,-500.0,0.00021917,4]
[345989441,1734609034900,-500.0,0.00021917,4]
[345989442,1734609034911,-500.0,0.00021917,2]
[345989443,1734609034920,-568.79,0.00021917,4]
[345989444,1734609034929,-500.0,0.00021917,4]
[345989445,1734609034939,-500.0,0.00021917,4]
[345989446,1734609034948,-500.0,0.00021917,4]
[345989447,1734609034958,-500.0,0.00021917,4]
[345989448,1734609034967,-500.0,0.00021917,4]
[345989449,1734609034976,-500.0,0.00021917,4]
[345989450,1734609034986,-500.0,0.00021917,4]
[345989451,1734609034995,-500.0,0.00021917,4]
[345989452,1734609035005,-500.0,0.00021917,4]
[345989453,1734609035015,-500.0,0.00021917,4]
[345989454,1734609035024,-500.0,0.00021917,4]
[345989455,1734609035034,-639.31,0.00021917,4]
[345989456,1734609035044,-500.0,0.00021917,4]
[345989457,1734609035053,-500.0,0.00021917,4]
[345989458,1734609035063,-500.0,0.00021917,4]
[345989459,1734609035072,-585.08,0.00021917,4]
[345989460,1734609035082,-546.44,0.00021917,4]
[345989461,1734609035091,-500.0,0.00021917,4]
[345989462,1734609035100,-500.0,0.00021917,4]
[345989463,1734609035110,-500.0,0.00021917,4]
[345989464,1734609035119,-211.99786132,0.00021917,4]
[345989465,1734609035131,-294.04707277,0.00021917,4]
[345989466,1734609035140,-500.0,0.00021917,4]
[345989467,1734609035150,-500.0,0.00021917,4]
[345989468,1734609035160,-500.0,0.00021917,4]
[345989469,1734609035170,-500.0,0.00021917,4]
[345989470,1734609035179,-122.05292723,0.00021917,4]
[345989471,1734609035191,-377.94707277,0.00021917,4]
[345989472,1734609035200,-500.0,0.00021917,4]
[345989473,1734609035210,-500.0,0.00021917,4]
[345989474,1734609035219,-500.0,0.00021917,4]
[345989475,1734609035229,-500.0,0.00021917,4]
[345989476,1734609035240,-590.13,0.00021917,4]
[345989477,1734609035250,-500.0,0.00021917,4]
[345989478,1734609035260,-500.0,0.00021917,4]
[345989479,1734609035269,-500.0,0.00021917,4]
[345989480,1734609035278,-500.0,0.00021917,4]
[345989481,1734609035287,-500.0,0.00021917,4]
[345989482,1734609035297,-500.0,0.00021917,4]
[345989483,1734609035306,-500.0,0.00021917,4]
[345989484,1734609035316,-500.0,0.00021917,4]
[345989485,1734609035326,-500.0,0.00021917,4]
[345989486,1734609035336,-500.0,0.00021917,2]
[345989487,1734609035345,-500.0,0.00021917,4]
[345989488,1734609035355,-508.71,0.00021917,4]
[345989489,1734609035364,-500.0,0.00021917,4]
[345989490,1734609035374,-500.0,0.00021917,4]
[345989491,1734609035384,-503.08070134,0.00021917,4]
[345989492,1734609035393,-507.30624498,0.00021917,4]
[345989493,1734609035405,-500.02901134,0.00021917,4]
[345989494,1734609035414,-500.0,0.00021917,4]
[345989495,1734609035424,-500.0,0.00021917,4]
[345989496,1734609035434,-500.0,0.00021917,4]
[345989497,1734609035443,-500.0,0.00021917,4]
[345989498,1734609035453,-500.0,0.00021917,4]
[345989499,1734609035463,-267.46257723,0.00021917,4]
[345989500,1734609035473,-500.0,0.00021917,4]
[345989501,1734609035483,-500.0,0.00021917,4]
[345989502,1734609035492,-500.0,0.00021917,4]
[345989503,1734609035502,-500.0,0.00021917,4]
[345989504,1734609035511,-500.0,0.00021917,4]
[345989505,1734609035521,-500.0,0.00021917,4]
[345989506,1734609035531,-500.0,0.00021917,4]
[345989507,1734609035540,-500.0,0.00021917,4]
[345989508,1734609035551,-502.03674464,0.00021917,4]
[345989509,1734609035564,-500.0,0.00021917,4]
[345989510,1734609035574,-503.17321344,0.00021917,4]
[345989511,1734609035584,-103.1099929,0.00021917,4]
[345989513,1734609038201,-250.0,0.00020946,2]
[345989514,1734609038210,-396.8900071,0.00021917,4]
[345989515,1734609038220,-82.88109238,0.00021917,4]
[345989516,1734609038231,-417.11890762,0.00021917,4]
[345989517,1734609038241,-500.0,0.00021917,4]
[345989518,1734609038251,-500.0,0.00021917,4]
[345989519,1734609038261,-500.0,0.00021917,4]
[345989520,1734609038270,-508.35649299,0.00021917,4]
[345989521,1734609038279,-500.0,0.00021917,4]
[345989522,1734609038288,-504.59087034,0.00021917,4]
[345989523,1734609038299,-500.0,0.00021917,4]
[345989524,1734609038308,-511.16802956,0.00021917,4]
[345989525,1734609038319,-500.0,0.00021917,4]
[345989526,1734609038328,-500.0,0.00021917,4]
[345989527,1734609038337,-500.0,0.00021917,4]
[345989528,1734609038347,-156.14591801,0.00021917,4]
[345989529,1734609038357,-502.33008941,0.00021917,4]
[345989530,1734609038367,-511.17282819,0.00021917,4]
[345989531,1734609038377,-530.11,0.00021917,4]
[345989532,1734609038387,-150.96897409,0.00021917,4]
[345989533,1734609038396,-500.0,0.00021917,4]
[345989534,1734609038406,-513.97026166,0.00021917,4]
[345989535,1734609038416,-500.0,0.00021917,4]
[345989536,1734609038426,-503.40014911,0.00021917,4]
[345989537,1734609038435,-425.66747902,0.00021917,4]
[345989538,1734609038469,-75.31553912,0.00021917,4]
[345989539,1734609038478,-508.8889028,0.00021917,4]
[345989540,1734609038488,-500.0,0.00021917,4]
[345989541,1734609038498,-467.96777552,0.00021917,4]
[345989542,1734609038543,-2654.23945515,0.00021917,4]
[345989543,1734609038628,-1891.08581738,0.00021917,4]
[345989544,1734609038638,-500.0,0.00021917,4]
[345989545,1734609038648,-500.0,0.00021917,4]
[345989546,1734609038658,-500.0,0.00021917,4]
[345989547,1734609038668,-500.0,0.00021917,4]
[345989548,1734609038678,-418.20341874,0.00021917,4]
[345989550,1734609038850,-83.1875431,0.00021917,4]
[345989552,1734609038860,-527.8686706,0.00021917,4]
[345989554,1734609038870,-494.0,0.00021917,4]
[345989556,1734609038880,-600.91,0.00021917,4]
[345989558,1734609038890,-500.0,0.00021917,4]
[345989560,1734609038900,-500.0,0.00021917,4]
[345989562,1734609038911,-500.0,0.00021917,4]
[345989564,1734609038920,-500.0,0.00021917,4]
[345989566,1734609038930,-567.87964445,0.00021917,4]
[345989568,1734609038940,-500.0,0.00021917,4]
[345989570,1734609038949,-500.0,0.00021917,4]
[345989572,1734609038959,-503.67718528,0.00021917,4]
[345989574,1734609038968,-428.79791234,0.00021917,4]
[345989576,1734609038977,-500.0,0.00021917,4]
[345989578,1734609038986,-500.0,0.00021917,4]
[345989580,1734609038995,-500.0,0.00021917,4]
[345989582,1734609039005,-500.0,0.00021917,4]
[345989584,1734609039014,-500.0,0.00021917,4]
[345989586,1734609039024,-500.0,0.00021917,4]
[345989588,1734609039033,-500.0,0.00021917,4]
[345989590,1734609039042,-500.0,0.00021917,4]
[345989592,1734609039052,-504.96537851,0.00021917,4]
[345989595,1734609039061,-500.0,0.00021917,4]
[345989597,1734609039071,-509.39983908,0.00021917,4]
[345989600,1734609039080,-500.0,0.00021917,4]
[345989603,1734609039090,-500.0,0.00021917,4]
[345989605,1734609039099,-608.2769009,0.00021917,4]
[345989608,1734609039109,-500.0,0.00021917,4]
[345989610,1734609039118,-500.0,0.00021917,4]
[345989612,1734609039127,-500.0,0.00021917,4]
[345989614,1734609039138,-500.0,0.00021917,4]
[345989616,1734609039147,-545.04,0.00021917,4]
[345989618,1734609039158,-500.0,0.00021917,4]
[345989620,1734609039167,-500.0,0.00021917,4]
[345989622,1734609039177,-500.0,0.00021917,4]
[345989624,1734609039186,-506.67766866,0.00021917,4]
[345989625,1734609039195,-500.0,0.00021917,4]
[345989627,1734609039204,-500.0,0.00021917,4]
[345989629,1734609039214,-503.41218768,0.00021917,4]
[345989631,1734609039222,-326.64648172,0.00021917,4]
[345989633,1734609039232,-500.0,0.00021917,4]
[345989635,1734609039241,-349.03440633,0.00021917,4]
[345989636,1734609039251,-504.00851505,0.00021917,4]
[345989638,1734609039261,-500.0,0.00021917,4]
[345989640,1734609039270,-500.0,0.00021917,4]
[345989642,1734609039279,-500.0,0.00021917,4]
[345989644,1734609039289,-500.0,0.00021917,4]
[345989646,1734609039298,-500.0,0.00021917,4]
[345989648,1734609039307,-500.0,0.00021917,4]
[345989649,1734609039316,-200.0,0.00021917,4]
[345989651,1734609039326,-500.0,0.00021917,4]
[345989653,1734609039335,-500.0,0.00021917,4]
[345989655,1734609039344,-509.14,0.00021917,4]
[345989657,1734609039353,-534.54832402,0.00021917,4]
[345989658,1734609039362,-500.0,0.00021917,4]
[345989660,1734609039371,-500.0,0.00021917,4]
[345989662,1734609039380,-500.0,0.00021917,4]
[345989664,1734609039389,-500.0,0.00021917,4]
[345989666,1734609039399,-515.63587209,0.00021917,4]
[345989667,1734609039408,-500.0,0.00021917,4]
[345989669,1734609039418,-500.0,0.00021917,4]
[345989671,1734609039427,-500.0,0.00021917,4]
[345989672,1734609039436,-513.70023237,0.00021917,4]
[345989673,1734609039445,-500.0,0.00021917,4]
[345989674,1734609039454,-500.0,0.00021917,4]
[345989675,1734609039463,-500.0,0.00021917,4]
[345989676,1734609039473,-502.59869591,0.00021917,4]
[345989677,1734609039482,-500.0,0.00021917,4]
[345989678,1734609039491,-1000.0,0.00021917,2]
[345989679,1734609039500,-500.0,0.00021917,4]
[345989680,1734609039509,-500.0,0.00021917,4]
[345989681,1734609039518,-500.0,0.00021917,4]
[345989682,1734609039527,-500.0,0.00021917,4]
[345989683,1734609039537,-500.0,0.00021917,4]
[345989684,1734609039546,-500.0,0.00021917,4]
[345989685,1734609039555,-500.0,0.00021917,4]
[345989686,1734609039564,-500.0,0.00021917,4]
[345989687,1734609039577,-500.0,0.00021917,4]
[345989688,1734609039586,-500.0,0.00021917,4]
[345989689,1734609039595,-500.0,0.00021917,4]
[345989690,1734609039604,-500.0,0.00021917,4]
[345989691,1734609039614,-500.0,0.00021917,4]
[345989692,1734609039625,-500.0,0.00021917,4]
[345989693,1734609039634,-500.0,0.00021917,4]
[345989694,1734609039644,-500.0,0.00021917,4]
[345989695,1734609039653,-500.0,0.00021917,4]
[345989696,1734609039663,-500.0,0.00021917,4]
[345989697,1734609039672,-500.0,0.00021917,4]
[345989698,1734609039681,-500.0,0.00021917,4]
[345989699,1734609039691,-500.0,0.00021917,4]
[345989700,1734609039700,-500.0,0.00021917,4]
[345989701,1734609039710,-500.0,0.00021917,4]
[345989702,1734609039720,-500.0,0.00021917,4]
[345989703,1734609039730,-500.0,0.00021917,4]
[345989704,1734609039739,-500.0,0.00021917,4]
[345989705,1734609039749,-500.0,0.00021917,4]
[345989706,1734609039759,-500.0,0.00021917,4]
[345989707,1734609039768,-500.0,0.00021917,4]
[345989708,1734609039777,-500.0,0.00021917,4]
[345989709,1734609039787,-500.0,0.00021917,4]
[345989710,1734609039796,-851.3,0.00021917,4]
[345989711,1734609039805,-500.0,0.00021917,4]
[345989712,1734609039814,-500.0,0.00021917,4]
[345989713,1734609039824,-500.0,0.00021917,4]
[345989714,1734609039833,-500.0,0.00021917,4]
[345989715,1734609039843,-500.0,0.00021917,4]
[345989716,1734609039852,-500.0,0.00021917,4]
[345989717,1734609039861,-500.0,0.00021917,4]
[345989718,1734609039870,-500.0,0.00021917,4]
[345989719,1734609039880,-500.0,0.00021917,4]
[345989720,1734609039890,-500.0,0.00021917,4]
[345989721,1734609039899,-500.0,0.00021917,4]
[345989722,1734609039908,-500.0,0.00021917,4]
[345989723,1734609039918,-500.0,0.00021917,4]
[345989724,1734609039927,-500.0,0.00021917,4]
[345989725,1734609039937,-500.0,0.00021917,4]
[345989726,1734609039947,-638.66,0.00021917,4]
[345989727,1734609039957,-500.0,0.00021917,4]
[345989728,1734609039967,-500.0,0.00021917,4]
[345989729,1734609039976,-500.0,0.00021917,4]
[345989730,1734609039986,-207.734683,0.00021917,4]
[345989731,1734609039995,-500.0,0.00021917,4]
[345989732,1734609040005,-154.039106,0.00021917,4]
[345989733,1734609040015,-500.0,0.00021917,4]
[345989734,1734609040026,-2110.604554,0.00021917,4]
[345989735,1734609040036,-500.0,0.00021917,4]
[345989736,1734609040045,-500.0,0.00021917,4]
[345989737,1734609040055,-1415.112584,0.00021917,4]
[345989738,1734609040064,-500.0,0.00021917,4]
[345989739,1734609040073,-500.0,0.00021917,4]
[345989740,1734609040082,-194.99408155,0.00021917,4]
[345989741,1734609040092,-500.0,0.00021917,4]
[345989742,1734609040101,-500.0,0.00021917,4]